bitfinex/quotes_SOLUSD_20250217
["timestamp","ask_amount","ask_price","bid_price","bid_amount"]
[1739820659696,0.063,178.0,177.98,20.48992157]
[1739820659917,0.063,178.0,177.96,26.10912157]
[1739820660241,0.063,178.0,177.97,20.48992157]
[1739820660409,0.063,178.0,177.98,20.48992157]
[1739820660916,0.063,178.0,177.97,20.48992157]
[1739820661424,0.063,178.0,177.98,20.48992157]
[1739820661623,0.063,178.0,177.97,20.48992157]
[1739820661922,0.063,178.0,177.99,5.6182]
[1739820662120,0.063,178.0,177.99,26.10812157]
[1739820663425,0.063,178.0,177.99,5.6182]
[1739820664628,0.063,178.0,177.95,20.48992157]
[1739820664833,0.063,178.0,177.96,20.48992157]
[1739820665013,0.063,178.0,177.97,20.48992157]
[1739820665705,0.063,178.0,177.98,20.48992157]
[1739820666099,0.063,178.0,177.99,26.10812157]
[1739820667519,0.0001,178.0,177.99,26.10812157]
[1739820668921,0.0001,178.02,178.01,20.0]
[1739820669228,0.03,178.04,178.03,1.0]
[1739820669229,0.0001,178.04,178.03,1.0]
[1739820669426,0.063,178.1,178.06,20.0]
[1739820669602,0.063,178.1,178.09,20.48992157]
[1739820671142,0.063,178.1,178.09,26.10502157]
[1739820671912,0.063,178.1,178.09,20.48992157]
[1739820672535,0.063,178.1,178.06,20.48992157]
[1739820672716,13.47484853,178.1,178.05,20.48992157]
[1739820672915,13.41184853,178.08,178.03,20.48992157]
[1739820673131,33.9017701,178.08,178.02,20.48992157]
[1739820673335,35.4372701,178.08,178.02,20.48992157]
[1739820674330,35.4372701,178.08,178.03,20.48992157]
[1739820674331,14.94734853,178.08,178.03,20.48992157]
[1739820674531,35.4372701,178.08,178.02,20.48992157]
[1739820674726,13.41184853,178.06,178.01,20.48992157]
[1739820674925,33.9017701,178.06,178.0,20.48992157]
[1739820675221,20.48992157,178.05,177.99,20.48992157]
[1739820675624,13.41184853,178.04,177.99,20.48992157]
[1739820676736,13.41184853,178.04,177.99,26.10812157]
[1739820677613,13.41184853,178.04,178.0,20.48992157]
[1739820677820,13.41184853,178.06,178.01,20.48992157]
[1739820679042,39.5178701,178.06,178.0,20.48992157]
[1739820679944,13.41184853,178.04,177.99,20.48992157]
[1739820680142,1.5355,178.08,178.03,20.48992157]
[1739820680332,1.5355,178.08,178.04,20.48992157]
[1739820680531,13.41184853,178.07,178.04,20.48992157]
[1739820680841,13.41184853,178.07,178.03,20.48992157]
[1739820681930,1.5355,178.08,178.05,20.48992157]
[1739820682250,88.565,178.09,178.06,26.10582157]
[1739820682847,82.1,178.09,178.07,20.48992157]
[1739820683037,13.47484853,178.1,178.07,20.48992157]
[1739820683440,13.47484853,178.1,178.08,20.48992157]
[1739820684734,0.063,178.1,178.08,20.48992157]
[1739820685237,0.063,178.1,178.08,26.10522157]
[1739820685438,0.063,178.1,178.08,20.48992157]
[1739820685753,0.063,178.1,178.09,20.48992157]
[1739820686334,0.063,178.1,178.09,26.10502157]
[1739820691950,0.063,178.1,178.09,5.6151]
[1739820692151,0.063,178.1,178.09,26.10502157]
[1739820697469,0.063,178.1,178.09,5.6151]
[1739820698886,20.55292157,178.1,178.05,5.6163]
[1739820699658,20.48992157,178.09,178.04,0.063]
[1739820699858,20.48992157,178.08,178.04,5.6795]
[1739820700978,20.48992157,178.07,178.04,0.063]
[1739820702771,26.10532157,178.08,178.04,0.063]
[1739820704648,20.48992157,178.08,178.04,0.063]
[1739820709557,20.48992157,178.08,178.04,5.6797]
[1739820709978,20.48992157,178.08,178.04,0.063]
[1739820712252,33.9017701,178.08,178.04,0.063]
[1739820712453,20.48992157,178.07,178.04,0.063]
[1739820714177,13.41184853,178.06,178.04,0.063]
[1739820714382,39.9822701,178.05,178.04,0.063]
[1739820714967,39.9822701,178.05,178.0,0.063]
[1739820714968,71.4967701,178.05,178.0,0.063]
[1739820715290,20.48992157,178.01,178.0,0.063]
[1739820715461,33.9017701,178.01,178.0,0.063]
[1739820716461,39.5193701,178.01,178.0,0.063]
[1739820717561,41.0338701,178.01,178.0,0.063]
[1739820718762,50.49234853,178.0,177.92,0.063]
[1739820718992,20.48992157,177.93,177.92,0.063]
[1739820719170,20.48992157,177.94,177.92,0.063]
[1739820719780,13.41184853,177.95,177.92,0.063]
[1739820719781,20.48992157,177.95,177.92,0.063]
[1739820720088,20.48992157,177.99,177.93,20.48992157]
[1739820720469,13.41184853,177.97,177.92,26.17312157]
[1739820720780,30.0,178.02,177.92,26.17312157]
[1739820720781,31.6684,178.1,177.96,20.48992157]
[1739820721102,20.48992157,178.09,178.03,20.48992157]
[1739820721404,27.77312157,178.1,178.04,20.48992157]
[1739820721567,22.15832157,178.1,178.04,20.48992157]
[1739820721769,1.6684,178.1,178.05,20.48992157]
[1739820721988,20.51992157,178.08,178.02,20.48992157]
[1739820722193,20.48992157,178.07,178.01,20.48992157]
[1739820722493,13.41184853,178.07,178.02,20.48992157]
[1739820722791,0.03,178.08,178.05,20.48992157]
[1739820722976,0.03,178.08,178.06,20.48992157]
[1739820723185,0.03,178.08,178.07,20.48992157]
[1739820724497,0.03,178.08,178.07,26.10562157]
[1739820724976,0.03,178.08,178.05,26.10602157]
[1739820725291,0.03,178.08,178.07,20.48992157]
[1739820726689,0.03,178.08,178.07,26.10562157]
[1739820730399,0.03,178.08,178.04,14.88372386]
[1739820730400,0.03,178.08,178.06,26.10592157]
[1739820730589,0.03,178.08,178.06,5.616]
[1739820731015,0.03,178.08,178.06,26.10592157]
[1739820731226,0.063,178.1,178.09,20.0]
[1739820731420,0.063,178.1,178.09,40.48992157]
[1739820732711,13.44184853,178.18,178.09,40.48992157]
[1739820732902,33.9317701,178.18,178.12,20.48992157]
[1739820733095,20.51992157,178.18,178.12,20.48992157]
[1739820733291,0.03,178.18,178.12,20.48992157]
[1739820733498,20.51992157,178.18,178.12,20.48992157]
[1739820733706,20.48992157,178.17,178.11,20.48992157]
[1739820734310,20.51992157,178.18,178.12,20.48992157]
[1739820734812,20.51992157,178.18,178.12,5.6141]
[1739820736297,20.48992157,178.17,178.11,5.6144]
[1739820736610,20.48992157,178.16,178.11,5.6144]
[1739820737324,20.48992157,178.14,178.07,0.84195553]
[1739820737496,20.48992157,178.14,178.01,1.0]
[1739820737497,20.48992157,178.1,178.04,20.48992157]
[1739820737691,20.48992157,178.09,178.02,26.10722157]
[1739820737907,20.48992157,178.09,178.02,40.15052157]
[1739820738219,20.48992157,178.09,178.03,20.48992157]
[1739820739306,20.48992157,178.1,178.04,20.48992157]
[1739820739514,20.48992157,178.1,178.05,5.6163]
[1739820741222,20.48992157,178.09,178.03,26.10662157]
[1739820743227,20.48992157,178.09,178.03,26.16962157]
[1739820743425,33.9017701,178.1,178.03,26.16962157]
[1739820743636,33.9317701,178.1,178.03,26.16962157]
[1739820743822,0.03,178.1,178.06,21.0]
[1739820744001,0.03,178.1,178.09,20.48992157]
[1739820744702,0.03,178.18,178.12,20.48992157]
[1739820745221,20.51992157,178.18,178.11,20.48992157]
[1739820745797,20.51992157,178.18,178.12,5.6141]
[1739820746624,32.75437674,178.18,178.12,5.6141]
[1739820748222,0.03,178.18,178.13,32.72437674]
[1739820748727,0.03,178.18,178.12,38.33847674]
[1739820749220,32.72437674,178.17,178.12,5.6141]
[1739820750807,32.72437674,178.16,178.11,5.6144]
[1739820751333,32.75437674,178.18,178.11,5.6144]
[1739820751622,32.72437674,178.17,178.1,38.33907674]
[1739820751814,32.72437674,178.15,178.1,5.6147]
[1739820752331,0.03,178.18,178.13,32.72437674]
[1739820752514,0.03,178.18,178.14,32.72437674]
[1739820753028,0.03,178.18,178.14,38.33777674]
[1739820753334,0.0001,178.18,178.17,20.0]
[1739820753537,0.0001,178.18,178.17,53.56587537]
[1739820753721,0.03,178.26,178.17,86.29025211]
[1739820753921,0.03,178.26,178.25,32.72437674]
[1739820754906,0.03,178.26,178.25,38.33437674]
[1739820755108,0.03,178.26,178.25,32.72437674]
[1739820759034,0.03,178.26,178.23,5.6106]
[1739820759035,0.03,178.26,178.24,32.72437674]
[1739820759236,13.41184853,178.25,178.16,5.6129]
[1739820759446,13.41184853,178.25,178.2,32.72437674]
[1739820759623,13.41184853,178.25,178.19,32.72437674]
[1739820760348,0.03,178.26,178.24,32.72437674]
[1739820760515,0.03,178.26,178.25,32.72437674]
[1739820762148,0.03,178.26,178.25,38.33437674]
[1739820763045,0.03,178.26,178.25,32.72437674]
[1739820766718,0.03,178.26,178.25,20.41898639]
[1739820768547,0.03,178.26,178.16,5.6129]
[1739820768758,15.01674853,178.25,178.2,20.41898639]
[1739820769846,13.41184853,178.23,178.2,20.41898639]
[1739820770860,13.41184853,178.23,178.21,20.41898639]
[1739820771743,1.6049,178.25,178.22,20.41898639]
[1739820771938,7.215,178.25,178.22,20.41898639]
[1739820772341,13.41184853,178.24,178.22,20.41898639]
[1739820772946,0.03,178.26,178.23,20.41898639]
[1739820773145,0.03,178.26,178.25,20.41898639]
[1739820773731,23.49353905,178.33,178.25,40.83797278]
[1739820773988,23.49353905,178.33,178.32,20.41898639]
[1739820774266,2.5636,178.38,178.32,20.41898639]
[1739820774267,5.607,178.35,178.32,20.41898639]
[1739820774468,5.607,178.35,178.34,20.41898639]
[1739820774633,19.01884853,178.35,178.34,20.41898639]
[1739820774841,13.41184853,178.35,178.34,20.41898639]
[1739820776751,19.01874853,178.35,178.34,20.41898639]
[1739820777362,13.41184853,178.35,178.34,20.41898639]
[1739820781492,13.41184853,178.35,178.33,20.41898639]
[1739820782179,13.44184853,178.35,178.33,20.41898639]
[1739820782576,0.03,178.35,178.34,20.41898639]
[1739820784278,0.03,178.35,178.34,26.02618639]
[1739820786287,0.03,178.35,178.34,20.41898639]
[1739820787977,0.03,178.35,178.34,26.02618639]
[1739820788891,0.03,178.35,178.34,20.41898639]
[1739820789084,0.03,178.35,178.26,5.6097]
[1739820789299,0.03,178.35,178.31,20.41898639]
[1739820789581,0.03,178.35,178.32,20.41898639]
[1739820789963,0.03,178.35,178.33,20.41898639]
[1739820790165,0.03,178.35,178.32,20.41898639]
[1739820790388,5.6369,178.35,178.32,20.41898639]
[1739820790778,0.03,178.35,178.32,20.41898639]
[1739820791180,0.03,178.35,178.34,20.41898639]
[1739820792491,0.03,178.35,178.34,26.02618639]
[1739820794022,0.06377057,178.42,178.34,40.04428639]
[1739820794287,0.06377057,178.42,178.41,20.41898639]
[1739820794477,0.06377057,178.42,178.34,5.6072]
[1739820794664,0.06377057,178.42,178.36,20.41898639]
[1739820794862,13.4756191,178.42,178.36,20.41898639]
[1739820795378,0.06377057,178.42,178.37,20.41898639]
[1739820795583,0.06377057,178.42,178.4,20.41898639]
[1739820796494,0.06377057,178.42,178.39,20.41898639]
[1739820796675,13.4756191,178.42,178.37,20.41898639]
[1739820797070,0.06377057,178.42,178.37,20.41898639]
[1739820797579,13.41184853,178.39,178.33,20.41898639]
[1739820797790,13.41184853,178.37,178.32,20.41898639]
[1739820798396,33.83083492,178.37,178.31,20.41898639]
[1739820799399,5.66857057,178.42,178.36,20.41898639]
[1739820799598,0.06377057,178.42,178.4,20.41898639]
[1739820800583,13.41184853,178.41,178.36,20.41898639]
[1739820801086,13.4756191,178.42,178.36,20.41898639]
[1739820801288,13.4756191,178.42,178.37,20.41898639]
[1739820801486,0.06377057,178.42,178.37,20.41898639]
[1739820801688,5.66847057,178.42,178.37,20.41898639]
[1739820802681,13.41184853,178.41,178.37,20.41898639]
[1739820802887,13.41184853,178.41,178.36,20.41898639]
[1739820803199,19.01694853,178.41,178.36,20.41898639]
[1739820804501,13.41184853,178.38,178.3,5.6085]
[1739820804697,13.41184853,178.38,178.32,20.41898639]
[1739820804893,1.543,178.37,178.31,20.41898639]
[1739820805199,13.41184853,178.35,178.31,20.41898639]
[1739820805401,13.41184853,178.35,178.32,20.41898639]
[1739820805981,13.41184853,178.35,178.31,20.41898639]
[1739820806210,13.41184853,178.35,178.3,20.41898639]
[1739820806524,13.41184853,178.35,178.29,20.41898639]
[1739820806888,13.41184853,178.35,178.3,20.41898639]
[1739820807093,13.41184853,178.35,178.31,0.063]
[1739820807311,5.6072,178.34,178.31,0.063]
[1739820807917,0.03,178.37,178.33,20.41898639]
[1739820808095,0.03,178.37,178.34,20.41898639]
[1739820808297,0.03,178.37,178.35,20.41898639]
[1739820808499,0.03,178.37,178.36,20.41898639]
[1739820809183,0.03,178.37,178.31,0.063]
[1739820809387,0.03,178.37,178.34,20.41898639]
[1739820809615,0.03,178.37,178.31,20.48198639]
[1739820809793,20.44898639,178.37,178.31,0.063]
[1739820809987,22.00738639,178.37,178.31,0.063]
[1739820810786,13.41184853,178.36,178.31,20.48198639]
[1739820811003,13.41184853,178.36,178.31,0.063]
[1739820811209,33.83083492,178.36,178.31,0.063]
[1739820811388,13.41184853,178.34,178.31,0.063]
[1739820811985,13.41184853,178.32,178.31,0.063]
[1739820812407,13.41184853,178.34,178.31,0.063]
[1739820813418,13.41184853,178.32,178.31,0.063]
[1739820815187,19.01964853,178.32,178.31,0.063]
[1739820815512,121.53863492,178.32,178.31,0.063]
[1739820815705,21.37894853,178.29,178.27,0.063]
[1739820815890,33.83083492,178.28,178.27,0.063]
[1739820816087,95.51184853,178.27,178.18,0.063]
[1739820816313,13.41184853,178.23,178.18,0.063]
[1739820817317,19.02224853,178.24,178.2,20.41898639]
[1739820817515,19.02224853,178.24,178.19,20.41898639]
[1739820817719,39.44123492,178.24,178.18,20.48198639]
[1739820818102,19.02224853,178.24,178.18,20.48198639]
[1739820818917,13.41184853,178.24,178.19,20.41898639]
[1739820819099,13.41184853,178.24,178.2,20.41898639]
[1739820819896,13.41184853,178.24,178.19,20.41898639]
[1739820820097,19.02224853,178.24,178.19,20.41898639]
[1739820820295,39.44123492,178.24,178.18,20.48198639]
[1739820821401,13.41184853,178.22,178.18,0.063]
[1739820821592,33.83083492,178.22,178.18,0.063]
[1739820821916,13.41184853,178.2,178.18,0.063]
[1739820822215,44.0232,178.28,178.19,20.41898639]
[1739820822397,5.6098,178.26,178.21,20.41898639]
[1739820822600,13.41184853,178.25,178.22,20.41898639]
[1739820822796,13.5761,178.29,178.24,20.41898639]
[1739820822994,1.5734,178.29,178.26,20.41898639]
[1739820823224,14.98524853,178.29,178.26,20.41898639]
[1739820823819,14.98524853,178.29,178.2,20.41898639]
[1739820823820,13.41184853,178.26,178.2,20.41898639]
[1739820824714,13.41184853,178.26,178.21,20.41898639]
[1739820825115,13.41184853,178.26,178.21,26.03018639]
[1739820825422,82.1,178.27,178.24,20.41898639]
[1739820825817,6.6607,178.33,178.26,20.41898639]
[1739820826004,1.6305,178.34,178.3,20.41898639]
[1739820826209,13.41184853,178.33,178.3,20.41898639]
[1739820826711,22.04948639,178.34,178.27,20.41898639]
[1739820827121,1.6305,178.34,178.28,20.41898639]
[1739820827420,22.04948639,178.34,178.27,20.41898639]
[1739820827921,1.6305,178.34,178.28,20.41898639]
[1739820829226,13.44184853,178.35,178.29,26.02778639]
[1739820829614,33.86083492,178.35,178.29,26.02778639]
[1739820831301,0.03,178.35,178.3,20.41898639]
[1739820831520,0.03,178.35,178.31,20.41898639]
[1739820832528,20.41898639,178.34,178.29,5.6088]
[1739820832922,20.44898639,178.35,178.29,26.02778639]
[1739820834644,20.41898639,178.32,178.27,5.6723]
[1739820834928,20.41898639,178.33,178.27,26.09128639]
[1739820835310,20.41898639,178.34,178.28,20.41898639]
[1739820835713,20.41898639,178.34,178.29,5.6088]
[1739820835916,13.41184853,178.34,178.29,26.02778639]
[1739820836230,33.83083492,178.34,178.29,5.6088]
[1739820837327,20.41898639,178.33,178.29,5.6088]
[1739820837633,20.41898639,178.33,178.27,20.48198639]
[1739820837826,20.41898639,178.33,178.28,5.6091]
[1739820840650,20.41898639,178.32,178.28,5.6091]
[1739820840815,20.41898639,178.31,178.27,5.6724]
[1739820841237,20.41898639,178.32,178.27,5.6724]
[1739820841638,20.41898639,178.31,178.27,5.6724]
[1739820841839,20.41898639,178.29,178.27,0.063]
[1739820842140,20.41898639,178.28,178.27,0.063]
[1739820842633,20.41898639,178.29,178.27,0.063]
[1739820843020,20.41898639,178.28,178.27,0.063]
[1739820845028,20.44898639,178.29,178.27,0.063]
[1739820845243,26.05778639,178.29,178.27,0.063]
[1739820845454,35.38313492,178.28,178.27,0.063]
[1739820845634,35.38313492,178.28,178.16,20.41898639]
[1739820845835,20.41898639,178.22,178.17,5.6126]
[1739820846020,20.41898639,178.23,178.17,26.03158639]
[1739820846342,20.41898639,178.24,178.17,26.03158639]
[1739820846726,20.41898639,178.23,178.17,26.03158639]
[1739820847123,5.6094,178.27,178.14,8.17]
[1739820847124,20.41898639,178.22,178.16,26.03178639]
[1739820849547,5.61,178.25,178.16,26.03178639]
[1739820849718,20.41898639,178.22,178.16,26.03178639]
[1739820851228,20.41898639,178.22,178.16,5.6128]
[1739820851628,20.41898639,178.19,178.14,0.063]
[1739820852846,26.03088639,178.19,178.14,0.063]
[1739820853023,39.44273492,178.19,178.14,0.063]
[1739820853222,121.54273492,178.19,178.14,0.063]
[1739820853423,157.81393492,178.19,178.14,0.063]
[1739820853625,96.51184853,178.18,178.14,0.063]
[1739820853823,20.41898639,178.1,178.09,0.063]
[1739820854040,33.83083492,178.1,178.09,0.063]
[1739820854246,40.35853492,178.1,178.09,0.063]
[1739820854843,45.97333492,178.1,178.09,0.063]
[1739820855832,82.1,178.09,178.03,0.063]
[1739820856036,33.83083492,178.04,178.03,0.063]
[1739820856348,14.94564853,178.03,178.02,0.063]
[1739820856544,113.6338,178.08,178.02,0.063]
[1739820856744,32.76998195,178.04,178.02,0.063]
[1739820856943,13.41184853,178.03,178.02,0.063]
[1739820857148,5.6162,178.06,178.02,0.063]
[1739820857149,32.76998195,178.06,178.02,0.063]
[1739820857339,82.1,178.07,178.02,0.063]
[1739820858144,46.18183048,178.06,178.02,0.063]
[1739820859031,13.41184853,178.06,178.02,0.063]
[1739820859443,82.1,178.07,178.02,0.063]
[1739820859649,82.1,178.07,178.04,32.76998195]
[1739820859849,82.1,178.12,178.06,32.76998195]
[1739820860149,82.1,178.12,178.08,32.76998195]
[1739820860346,82.1,178.12,178.07,32.76998195]
[1739820860847,82.1,178.12,178.06,32.76998195]
[1739820861047,82.1,178.12,178.07,5.6157]
[1739820861048,114.86998195,178.12,178.07,5.6157]
[1739820861347,32.76998195,178.09,178.02,32.83298195]
[1739820861578,32.76998195,178.06,178.02,0.063]
[1739820861755,32.76998195,178.06,178.02,5.6802]
[1739820861940,32.76998195,178.07,178.02,5.6802]
[1739820862531,32.76998195,178.05,178.02,0.063]
[1739820862737,32.76998195,178.04,178.02,0.063]
[1739820863252,32.76998195,178.03,178.02,0.063]
[1739820863932,46.18183048,178.03,178.02,0.063]
[1739820865050,78.95181243,178.03,178.02,0.063]
[1739820865239,56.5285,177.99,177.89,0.063]
[1739820865448,46.18183048,177.93,177.89,0.063]
[1739820867450,51.80193048,177.93,177.89,0.063]
[1739820868152,86.08311243,177.93,177.89,0.063]
[1739820869157,53.31313048,177.93,177.89,0.063]
[1739820870158,86.08311243,177.93,177.89,0.063]
[1739820870860,118.08311243,177.93,177.89,0.063]
[1739820871761,118.08311243,177.93,177.92,0.0001]
[1739820874862,20.0,177.9,177.85,0.04687826]
[1739820875052,32.76998195,177.86,177.85,0.04687826]
[1739820875257,13.41184853,177.86,177.85,0.04687826]
[1739820875444,46.18183048,177.86,177.85,0.04687826]
[1739820876548,51.80413048,177.86,177.85,0.04687826]
[1739820879962,86.57411243,177.86,177.85,0.04687826]
[1739820880272,33.41184853,177.83,177.74,0.063]
[1739820880485,14.41184853,177.82,177.74,0.063]
[1739820880692,5.6223,177.86,177.78,32.76998195]
[1739820880993,5.6217,177.88,177.8,32.76998195]
[1739820881157,32.76998195,177.87,177.8,32.76998195]
[1739820881359,13.41184853,177.86,177.8,32.76998195]
[1739820881596,46.18183048,177.86,177.8,32.76998195]
[1739820881861,46.18183048,177.86,177.8,5.624]
[1739820882089,32.76998195,177.85,177.8,5.624]
[1739820882289,46.18183048,177.86,177.8,5.624]
[1739820882469,13.41184853,177.85,177.8,5.624]
[1739820883161,13.41184853,177.85,177.8,38.39398195]
[1739820884464,13.41184853,177.85,177.8,5.624]
[1739820885290,32.76998195,177.85,177.8,5.624]
[1739820885694,32.76998195,177.86,177.8,5.624]
[1739820885996,32.76998195,177.87,177.8,38.39398195]
[1739820886163,46.18183048,177.86,177.8,38.39398195]
[1739820886576,5.6214,177.89,177.82,32.76998195]
[1739820886577,32.76998195,177.89,177.82,32.76998195]
[1739820886770,114.86998195,177.92,177.85,32.76998195]
[1739820887072,32.76998195,177.89,177.82,38.39358195]
[1739820888575,32.76998195,177.88,177.82,5.6236]
[1739820888873,32.76998195,177.86,177.82,5.6236]
[1739820889082,32.76998195,177.86,177.79,38.39458195]
[1739820889260,32.76998195,177.86,177.8,32.76998195]
[1739820889463,32.76998195,177.87,177.8,32.76998195]
[1739820890304,32.76998195,177.87,177.81,5.6239]
[1739820891986,32.76998195,177.87,177.81,38.39388195]
[1739820892287,38.39208195,177.87,177.81,38.39388195]
[1739820892587,38.39208195,177.87,177.81,38.42388195]
[1739820892998,32.76998195,177.87,177.81,38.42388195]
[1739820893887,32.76998195,177.86,177.81,0.03]
[1739820894190,32.76998195,177.83,177.81,0.03]
[1739820894694,46.18183048,177.82,177.81,0.03]
[1739820894862,46.18183048,177.82,177.74,0.063]
[1739820894863,30.0,177.81,177.74,0.063]
[1739820895066,32.76998195,177.75,177.74,0.063]
[1739820895364,32.76998195,177.76,177.74,0.063]
[1739820896577,32.76998195,177.75,177.74,0.063]
[1739820896772,32.76998195,177.76,177.74,0.063]
[1739820896972,82.1,177.8,177.74,32.83298195]
[1739820897487,13.41184853,177.81,177.76,32.76998195]
[1739820897862,46.18183048,177.8,177.74,32.83298195]
[1739820898067,32.76998195,177.79,177.74,0.063]
[1739820898469,32.76998195,177.83,177.76,32.76998195]
[1739820898675,32.76998195,177.83,177.77,32.76998195]
[1739820899291,32.76998195,177.83,177.76,5.6255]
[1739820899292,34.41928195,177.85,177.79,32.76998195]
[1739820899469,91.97122846,177.86,177.81,32.76998195]
[1739820899674,91.97122846,177.86,177.82,32.76998195]
[1739820900281,91.97122846,177.86,177.84,32.76998195]
[1739820900486,91.97122846,177.86,177.85,32.76998195]
[1739820900670,91.97122846,177.86,177.78,0.84334102]
[1739820900671,91.97122846,177.86,177.83,32.76998195]
[1739820900879,91.97122846,177.86,177.81,38.39388195]
[1739820901096,124.74121041,177.86,177.81,5.6239]
[1739820901474,32.76998195,177.84,177.77,32.76998195]
[1739820901794,32.76998195,177.8,177.74,32.83298195]
[1739820902090,13.41184853,177.81,177.74,0.063]
[1739820902091,32.76998195,177.78,177.74,0.063]
[1739820902495,114.86998195,177.79,177.74,0.063]
[1739820902790,120.49458195,177.79,177.74,0.063]
[1739820902971,32.76998195,177.78,177.74,0.063]
[1739820903178,46.18183048,177.77,177.74,0.063]
[1739820903382,46.18183048,177.75,177.74,0.063]
[1739820903587,13.41184853,177.75,177.74,0.063]
[1739820903791,13.41184853,177.76,177.74,0.063]
[1739820904181,9.87122846,177.86,177.81,1.0]
[1739820904391,9.87122846,177.86,177.85,32.76998195]
[1739820904693,0.063,177.89,177.88,20.0]
[1739820904895,0.063,177.89,177.88,58.39168195]
[1739820905105,0.063,177.89,177.85,32.76998195]
[1739820905403,13.41184853,177.88,177.83,32.76998195]
[1739820905584,13.41184853,177.87,177.81,52.76998195]
[1739820906205,13.41184853,177.87,177.81,32.76998195]
[1739820906383,46.18183048,177.86,177.79,32.76998195]
[1739820906794,13.41184853,177.86,177.8,32.76998195]
[1739820906996,13.41184853,177.84,177.78,32.76998195]
[1739820907300,13.41184853,177.83,177.77,32.76998195]
[1739820907501,13.41184853,177.85,177.81,32.76998195]
[1739820907703,82.1,177.86,177.83,32.76998195]
[1739820907907,82.1,177.86,177.85,32.76998195]
[1739820908076,0.063,177.89,177.85,32.76998195]
[1739820908276,0.063,177.89,177.88,32.76998195]
[1739820908690,0.063,177.89,177.88,53.30188528]
[1739820909904,0.063,177.89,177.88,58.92358528]
[1739820910605,0.063,177.89,177.88,53.30188528]
[1739820911101,0.063,177.89,177.88,58.92358528]
[1739820911310,0.063,177.89,177.88,53.30188528]
[1739820912509,0.063,177.89,177.88,58.92358528]
[1739820913178,0.063,177.89,177.88,59.76666269]
[1739820913399,0.063,177.89,177.88,58.92358528]
[1739820914000,0.063,177.89,177.88,53.30188528]
[1739820914292,0.063,177.89,177.88,58.92358528]
[1739820915398,0.063,177.89,177.88,53.30188528]
[1739820915589,0.063,177.89,177.87,53.30188528]
[1739820916612,0.063,177.89,177.86,53.30188528]
[1739820917186,0.063,177.89,177.85,53.30188528]
[1739820917386,0.063,177.89,177.84,53.30188528]
[1739820917808,0.063,177.89,177.87,53.30188528]
[1739820918307,0.063,177.89,177.86,53.30188528]
[1739820918610,0.063,177.89,177.87,53.30188528]
[1739820918917,0.063,177.89,177.88,53.30188528]
[1739820919090,0.063,177.89,177.86,53.30188528]
[1739820919410,0.063,177.89,177.87,53.30188528]
[1739820919591,0.063,177.89,177.88,53.30188528]
[1739820921300,0.063,177.89,177.88,58.92358528]
[1739820921804,0.063,177.89,177.88,53.30188528]
[1739820922109,0.063,177.89,177.87,53.30188528]
[1739820922296,0.063,177.89,177.86,53.30188528]
[1739820922491,0.063,177.89,177.87,53.30188528]
[1739820923000,82.1,177.88,177.87,53.30188528]
[1739820923190,82.1,177.88,177.86,53.30188528]
[1739820923990,82.1,177.88,177.87,53.30188528]
[1739820926094,82.1,177.88,177.86,53.30188528]
[1739820926396,82.1,177.88,177.87,53.30188528]
[1739820926916,0.063,177.89,177.83,20.0]
[1739820927088,0.063,177.89,177.87,53.30188528]
[1739820928295,0.063,177.89,177.84,5.6229]
[1739820928296,0.063,177.89,177.86,53.30188528]
[1739820928699,0.063,177.89,177.88,53.30188528]
[1739820929999,0.063,177.89,177.88,58.92358528]
[1739820930722,0.063,177.89,177.88,38.42400862]
[1739820934117,0.063,177.89,177.88,5.6217]
[1739820934322,0.063,177.89,177.88,32.80230862]
[1739820935007,0.063,177.89,177.88,38.42400862]
[1739820937315,0.063,177.89,177.88,32.80230862]
[1739820937710,0.063,177.89,177.87,32.80230862]
[1739820937920,0.063,177.89,177.86,32.83230862]
[1739820938124,0.063,177.89,177.86,0.03]
[1739820938510,0.063,177.89,177.87,32.80230862]
[1739820938907,5.6844,177.89,177.86,0.03]
[1739820939211,82.1,177.88,177.86,0.03]
[1739820941641,82.1,177.87,177.86,0.03]